bitfinex/quotes_ETHUSD_20250414
["timestamp","ask_amount","ask_price","bid_price","bid_amount"]
[1744611690931,4.93374,1621.5,1621.2,5.78018579]
[1744611691130,4.93374,1621.5,1621.2,0.7839]
[1744611691578,9.86764,1621.5,1621.2,0.7839]
[1744611693074,4.93404,1621.4,1621.2,0.7839]
[1744611693281,9.86825,1621.4,1621.0,5.71909]
[1744611693472,4.93431,1621.3,1621.0,7.81451936]
[1744611693984,4.93404,1621.4,1621.0,7.81451936]
[1744611694341,4.93404,1621.4,1621.1,0.06167794]
[1744611694585,4.93372,1621.5,1621.1,4.99657794]
[1744611694876,9.86761,1621.5,1621.1,4.99657794]
[1744611695183,4.93372,1621.5,1621.1,11.21244867]
[1744611695642,9.86764,1621.5,1621.1,6.27754867]
[1744611695847,9.86764,1621.5,1621.1,6.27754869]
[1744611696049,4.93372,1621.5,1621.1,11.21231869]
[1744611696487,4.93372,1621.5,1621.1,6.27754869]
[1744611696685,9.86906,1621.3,1621.0,2.87932936]
[1744611696916,4.93464,1621.2,1621.0,2.09542936]
[1744611697054,4.93452,1621.3,1620.9,12.01502635]
[1744611697381,5.72281,1621.4,1621.0,4.93519]
[1744611697585,9.86821,1621.4,1621.1,0.7626]
[1744611697787,4.93519,1621.1,1620.8,0.7626]
[1744611698348,4.93509,1621.1,1620.8,0.7626]
[1744611698575,4.93542,1621.0,1620.6,5.69902]
[1744611698776,4.93542,1621.0,1620.7,0.569902]
[1744611698948,4.93552,1620.9,1620.7,0.569902]
[1744611699345,4.93613,1620.7,1620.4,60.1206]
[1744611699548,4.93613,1620.7,1620.4,7.2086]
[1744611699761,4.93613,1620.7,1620.1,0.02]
[1744611699762,4.93613,1620.7,1620.2,5.70022]
[1744611699974,4.93679,1620.5,1620.2,0.7626]
[1744611700373,4.93648,1620.6,1620.2,10.63776]
[1744611700579,4.93614,1620.7,1620.3,6.001096]
[1744611700793,9.87247,1620.7,1620.3,6.001096]
[1744611701118,4.93585,1620.8,1620.4,9.87398]
[1744611701274,4.93585,1620.8,1620.5,0.7626]
[1744611702509,4.9362,1620.7,1620.5,0.7626]
[1744611702691,4.9362,1620.7,1620.3,6.001116]
[1744611702692,4.9362,1620.7,1620.3,11.700966]
[1744611702900,4.93585,1620.8,1620.4,1.23180395]
[1744611703192,4.93585,1620.8,1620.4,4.99864735]
[1744611703397,9.87188,1620.8,1620.4,4.93694]
[1744611703997,9.87188,1620.8,1620.4,4.9986447]
[1744611704608,4.93556,1620.9,1620.5,4.93662]
[1744611704907,11.37824,1621.0,1620.6,5.6989]
[1744611705113,11.37824,1621.0,1620.6,6.762402]
[1744611705308,4.93524,1621.0,1620.6,6.762402]
[1744611705604,4.93604,1620.8,1620.4,8.98140356]
[1744611705809,9.87208,1620.8,1620.4,8.98140356]
[1744611706107,9.87208,1620.8,1620.4,9.04310791]
[1744611706312,9.87208,1620.8,1620.4,5.76133435]
[1744611706678,4.93616,1620.7,1620.4,0.7626]
[1744611706879,4.93655,1620.6,1620.2,8.70021]
[1744611707216,9.87325,1620.6,1620.2,5.70021]
[1744611707412,4.93699,1620.5,1620.2,0.7626]
[1744611709112,4.93699,1620.5,1620.2,5.70023]
[1744611709288,4.93648,1620.6,1620.2,10.63786]
[1744611709496,4.9362,1620.7,1620.3,10.938216]
[1744611710017,4.93666,1620.6,1620.3,1.063786]
[1744611710192,9.87335,1620.6,1620.3,1.063786]
[1744611710692,4.93666,1620.6,1620.3,1.063786]
[1744611711206,4.93666,1620.6,1620.3,6.001096]
[1744611711808,4.93666,1620.6,1620.3,6.06280684]
[1744611712584,4.93666,1620.6,1620.3,6.001096]
[1744611713711,4.93666,1620.6,1620.3,1.063786]
[1744611714011,9.87335,1620.6,1620.3,1.063786]
[1744611714519,4.93674,1620.5,1620.2,0.7626]
[1744611714818,4.9374,1620.3,1620.1,0.02]
[1744611715224,9.87493,1620.3,1620.1,0.02]
[1744611715399,4.93671,1620.6,1620.2,8.10788591]
[1744611715602,4.9367,1620.6,1620.3,0.7712]
[1744611715909,16.82369,1620.7,1620.3,5.70851]
[1744611716106,4.93696,1620.5,1620.2,3.17036591]
[1744611716321,4.93717,1620.4,1620.1,3.96756591]
[1744611716822,9.87445,1620.4,1620.1,3.96756591]
[1744611717423,4.93736,1620.3,1620.1,3.96756591]
[1744611717731,4.93766,1620.2,1620.1,0.02]
[1744611717930,5.92419,1620.2,1620.1,0.02]
[1744611719009,5.71838,1620.4,1620.1,3.19636591]
[1744611719317,11.38195,1620.5,1620.1,4.95769]
[1744611719527,4.93707,1620.4,1620.1,4.95769]
[1744611719882,4.93695,1620.5,1620.1,5.01940998]
[1744611720213,4.93676,1620.5,1620.2,4.9376]
[1744611720800,4.93663,1620.6,1620.3,0.7712]
[1744611721512,16.04249,1620.7,1620.3,5.70853]
[1744611722317,12.16317,1620.8,1620.4,4.93699]
[1744611722617,9.87261,1620.7,1620.3,5.70852]
[1744611722801,4.93629,1620.7,1620.3,10.64572]
[1744611723006,12.16315,1620.8,1620.4,4.93694]
[1744611723207,16.3179,1620.8,1620.4,5.51387474]
[1744611723724,4.93572,1620.9,1620.4,3.86022886]
[1744611724101,9.87155,1620.9,1620.5,4.93664]
[1744611724724,4.93572,1620.9,1620.5,9.87326]
[1744611724926,4.93525,1621.0,1620.7,5.69233]
[1744611725226,4.93525,1621.0,1620.7,0.7562]
[1744611725588,5.76014,1621.2,1620.9,4.9355]
[1744611725783,4.93504,1621.1,1620.7,6.58988841]
[1744611726022,4.93524,1621.0,1620.7,1.65377841]
[1744611726224,4.93524,1621.0,1620.7,0.7562]
[1744611727197,4.93492,1621.1,1620.7,5.69223]
[1744611727929,5.76013,1621.2,1620.7,0.7562]
[1744611728125,6.446,1621.3,1620.9,4.93549]
[1744611728326,4.93401,1621.4,1621.1,4.93487]
[1744611728525,4.93374,1621.5,1621.1,4.93487]
[1744611728830,4.93445,1621.3,1621.0,1.249749]
[1744611729132,9.869,1621.3,1621.0,1.249749]
[1744611729835,4.93445,1621.3,1621.0,1.249749]
[1744611730505,9.86898,1621.3,1621.0,1.249749]
[1744611730715,4.93445,1621.3,1621.0,1.249749]
[1744611730919,9.86898,1621.3,1621.0,1.249749]
[1744611731121,4.93445,1621.3,1621.0,1.249749]
[1744611731443,9.86899,1621.3,1621.0,1.249749]
[1744611731637,4.93467,1621.2,1621.0,0.493549]
[1744611731831,4.93467,1621.2,1620.8,9.03916412]
[1744611732212,4.93435,1621.3,1620.8,4.16503454]
[1744611732547,4.93403,1621.4,1621.0,4.93518]
[1744611732843,4.93454,1621.3,1620.9,4.99710042]
[1744611733040,9.86908,1621.3,1621.0,0.49971004]
[1744611733225,4.93454,1621.3,1621.0,0.49971004]
[1744611734141,4.93453,1621.3,1621.0,0.49971004]
[1744611734650,9.86901,1621.3,1621.0,0.49971004]
[1744611735746,4.93448,1621.3,1621.0,0.49971004]
[1744611735951,4.93448,1621.3,1621.0,5.43493004]
[1744611736456,4.93478,1621.2,1621.0,0.49971004]
[1744611736637,4.93478,1621.2,1620.8,9.03904412]
[1744611736836,4.93478,1621.2,1620.9,4.93547]
[1744611737849,4.93431,1621.3,1620.9,4.997067]
[1744611738852,4.93431,1621.3,1621.0,4.93514]
[1744611739750,0.7981,1621.5,1621.1,4.93491]
[1744611739958,4.93354,1621.6,1621.3,4.93426]
[1744611740254,4.93354,1621.6,1621.2,0.493491]
[1744611740255,9.8677,1621.5,1621.2,0.493491]
[1744611740449,4.93435,1621.3,1621.1,3.99265494]
[1744611740654,4.93435,1621.3,1621.0,4.93517]
[1744611740655,4.93461,1621.2,1620.9,8.10804494]
[1744611740948,4.93496,1621.1,1620.8,8.92846494]
[1744611741133,4.93496,1621.1,1620.8,5.75591]
[1744611741995,4.93461,1621.2,1620.8,5.75576]
[1744611742253,9.8694,1621.2,1620.9,3.74813094]
[1744611742413,9.8694,1621.2,1620.8,5.75576]
[1744611742610,4.93496,1621.1,1620.8,0.8201]
[1744611743041,0.7981,1621.3,1620.6,4.93639]
[1744611743042,12.17343,1621.3,1620.6,4.93639]
[1744611743252,4.93533,1621.0,1620.6,5.72703]
[1744611743458,4.93494,1621.1,1620.7,8.68127794]
[1744611743641,4.93494,1621.1,1620.7,8.68122794]
[1744611743943,4.93494,1621.1,1620.8,4.93583]
[1744611744145,4.93466,1621.2,1620.8,9.87152]
[1744611744328,4.93466,1621.2,1620.8,11.23319779]
[1744611744523,18.34342,1621.3,1620.9,8.96046827]
[1744611744728,17.54532,1621.3,1620.9,8.96046827]
[1744611745363,4.93473,1621.2,1620.9,0.7907]
[1744611746160,17.54531,1621.3,1620.9,5.72603]
[1744611746362,17.54531,1621.3,1621.0,5.507743]
[1744611746567,11.37531,1621.3,1621.0,5.507743]
[1744611746762,11.37531,1621.3,1621.0,0.572603]
[1744611746989,4.93464,1621.2,1620.9,5.72603]
[1744611747166,0.782,1621.2,1620.7,8.68135794]
[1744611747363,0.782,1621.2,1620.5,8.89998494]
[1744611747571,4.93569,1620.9,1620.6,4.93643]
[1744611747767,4.93526,1621.0,1620.6,9.87274]
[1744611748273,9.8707,1621.0,1620.6,4.93631]
[1744611749264,4.93501,1621.1,1620.7,3.17255494]
[1744611749514,11.10492,1621.2,1620.8,5.7879756]
[1744611749651,11.10492,1621.2,1620.8,10.7236456]
[1744611750349,11.10492,1621.2,1620.8,10.66195]
[1744611750550,6.17,1621.2,1620.8,0.7907]
[1744611750783,4.9351,1621.1,1620.8,0.7907]
[1744611751084,6.04561,1621.1,1620.8,0.7907]
[1744611751587,4.93523,1621.0,1620.8,0.7907]
[1744611751783,10.98076,1621.1,1620.8,0.7907]
[1744611752383,4.93526,1621.0,1620.7,8.10864494]
[1744611752585,4.93558,1620.9,1620.7,3.17255494]
[1744611753895,4.93526,1621.0,1620.7,3.17255494]
[1744611754396,5.93331746,1621.0,1620.7,3.17255494]
[1744611754998,10.86872746,1621.0,1620.7,3.17255494]
[1744611755499,5.93331746,1621.0,1620.7,3.17255494]
[1744611756897,5.93331746,1621.0,1620.7,8.10865494]
[1744611757296,0.99805746,1621.0,1620.7,8.10865494]
[1744611757505,4.93497,1621.1,1620.8,4.93581]
[1744611758207,6.17,1621.2,1621.0,4.9352]
[1744611758501,4.93432,1621.3,1621.0,4.9352]
[1744611758685,9.8688,1621.3,1620.9,8.85958494]
[1744611759070,4.93432,1621.3,1620.9,8.92127117]
[1744611759274,9.86883,1621.3,1620.9,8.92127117]
[1744611759570,9.86883,1621.3,1620.9,8.85958494]
[1744611759770,9.86883,1621.3,1620.9,8.92127117]
[1744611760400,9.86883,1621.3,1620.9,8.85958494]
[1744611760695,4.93432,1621.3,1620.9,8.85958494]
[1744611760902,4.93432,1621.3,1620.9,10.30080865]
[1744611761697,4.93432,1621.3,1621.0,4.93518]
[1744611761896,4.93405,1621.4,1621.0,9.87026]
[1744611762070,4.93405,1621.4,1621.1,8.10745494]
[1744611762669,4.9341,1621.4,1621.1,8.10745494]
[1744611763367,12.17402,1621.5,1621.1,8.10745494]
[1744611763368,17.10797,1621.5,1621.1,8.10745494]
[1744611765104,12.17402,1621.5,1621.1,13.04223494]
[1744611765305,12.17402,1621.5,1621.1,14.08610315]
[1744611765506,11.37472,1621.5,1621.2,5.68611]
[1744611765795,6.441,1621.5,1621.3,8.10681494]
[1744611766002,4.9334,1621.6,1621.3,8.10681494]
[1744611766578,16.03581,1621.8,1621.5,3.17255494]
[1744611766781,4.93319,1621.7,1621.3,13.04106494]
[1744611766980,4.93319,1621.7,1621.3,14.42033143]
[1744611768622,4.93319,1621.7,1621.3,14.42017143]
[1744611768925,4.93319,1621.7,1621.3,9.48596143]
[1744611769120,4.93319,1621.7,1621.3,9.54763281]
[1744611769626,4.93319,1621.7,1621.3,9.48596143]
[1744611769829,4.93352,1621.6,1621.3,9.48596143]
[1744611770193,4.93352,1621.6,1621.3,9.54763286]
[1744611771124,4.93352,1621.6,1621.4,0.95476329]
[1744611773327,4.93319,1621.7,1621.4,0.95476329]
[1744611773489,4.93319,1621.7,1621.4,5.88874329]
[1744611774329,4.93319,1621.7,1621.3,14.42015143]
[1744611775724,9.86645,1621.7,1621.3,9.48596143]
[1744611776937,5.74819,1621.6,1621.3,8.10669494]
[1744611777432,5.74819,1621.6,1621.3,3.17255494]
[1744611777933,4.93412,1621.4,1621.0,8.92692494]
[1744611778136,4.93477,1621.2,1620.9,3.99175494]
[1744611778321,4.93477,1621.2,1620.9,3.17255494]
[1744611778840,9.86959,1621.2,1620.9,3.17255494]
[1744611779021,9.86959,1621.2,1620.8,4.93571]
[1744611779227,10.938019,1621.2,1620.8,4.93571]
[1744611779426,6.003199,1621.2,1620.9,3.17255494]
[1744611779740,4.93477,1621.2,1620.9,8.10807494]
[1744611780251,4.93477,1621.2,1620.9,3.17255494]
[1744611780405,4.93477,1621.2,1620.9,8.10805494]
[1744611780830,11.36972,1621.5,1621.1,3.17255494]
[1744611780831,4.93402,1621.4,1621.1,3.17255494]
[1744611781032,7.2507,1621.5,1621.1,8.10745494]
[1744611781238,4.93413,1621.4,1621.1,3.17255494]
[1744611781443,4.93447,1621.3,1621.1,3.17255494]
[1744611781633,4.934,1621.4,1621.1,3.99175494]
[1744611781803,12.18444,1621.5,1621.1,8.92653494]
[1744611782004,12.18444,1621.5,1621.1,10.31886311]
[1744611782300,0.8147,1621.5,1621.1,5.38408311]
[1744611782505,4.93343,1621.6,1621.3,3.17255494]
[1744611783119,9.867,1621.6,1621.3,3.17255494]
[1744611783302,4.93343,1621.6,1621.3,3.17255494]
[1744611783708,9.86702,1621.6,1621.3,3.17255494]
[1744611783944,4.93372,1621.5,1621.3,3.17255494]
[1744611784330,4.93343,1621.6,1621.3,3.17255494]
[1744611785045,9.86701,1621.6,1621.3,3.17255494]
[1744611785343,4.93343,1621.6,1621.3,3.17255494]
[1744611785552,5.74782,1621.7,1621.4,0.7963]
[1744611785723,5.74782,1621.7,1621.4,5.7303]
[1744611786647,5.686,1621.9,1621.6,4.9333]
[1744611786847,0.7535,1621.9,1621.6,4.93325]
[1744611788157,4.93218,1622.0,1621.7,3.17255494]
[1744611788360,0.7535,1622.3,1621.9,3.17255494]
[1744611788562,5.68489,1622.3,1621.9,8.10492494]
[1744611788718,9.86339,1622.2,1621.9,3.17255494]
[1744611789052,4.93218,1622.0,1621.9,3.17255494]
[1744611789257,0.7535,1622.1,1621.5,8.90252494]
[1744611789566,4.93218,1622.0,1621.7,3.17255494]
[1744611790537,11.36764,1622.2,1621.9,3.17255494]
[1744611790742,6.436,1622.2,1621.9,8.10493494]
[1744611791048,5.68495,1622.3,1621.9,9.54998729]
[1744611791255,5.68495,1622.3,1621.9,14.42065643]
[1744611791457,0.7535,1622.3,1621.9,4.55595643]
[1744611791753,4.93187,1622.1,1621.9,3.17255494]
[1744611793461,4.93187,1622.1,1621.7,8.10547494]
[1744611793629,0.7535,1622.0,1621.7,3.17255494]
[1744611793833,4.93263,1621.9,1621.7,3.17255494]
[1744611795417,4.93311,1621.7,1621.5,3.17255494]
[1744611795621,4.93311,1621.7,1621.5,4.70643743]
[1744611796624,4.93281,1621.8,1621.5,9.64007743]
[1744611796853,9.86519,1621.9,1621.5,9.64007743]
[1744611797436,5.6857,1622.0,1621.7,3.17255494]
[1744611798543,10.61807,1622.0,1621.7,3.17255494]
[1744611799164,9.86457,1622.0,1621.7,3.17255494]
[1744611799321,4.9322,1622.0,1621.7,3.17255494]
[1744611799770,9.86455,1622.0,1621.7,3.17255494]
[1744611801067,4.93249,1621.9,1621.7,3.17255494]
[1744611802830,9.86514,1621.9,1621.7,3.17255494]
[1744611803670,9.86514,1621.9,1621.6,0.7963]
[1744611803877,4.93249,1621.9,1621.6,0.7963]
[1744611806073,4.93279,1621.8,1621.6,0.7963]
[1744611806370,4.93279,1621.8,1621.5,9.63998743]
[1744611807067,5.75589,1621.8,1621.5,9.63998743]
[1744611808191,10.68889,1621.8,1621.5,4.70643743]
[1744611808790,4.93358,1621.6,1621.2,16.79397494]
[1744611809100,0.8231,1621.8,1621.2,16.79397494]
[1744611809101,4.93313,1621.7,1621.2,6.92485494]
[1744611809264,4.93313,1621.7,1621.4,8.10645494]
[1744611810191,9.86639,1621.7,1621.4,3.17255494]
[1744611810374,9.86645,1621.7,1621.4,3.17255494]
[1744611811078,4.93344,1621.6,1621.4,3.17255494]
[1744611811257,4.93344,1621.6,1621.3,4.93416]
[1744611811465,4.93344,1621.6,1621.3,6.61351949]
[1744611812187,9.8665,1621.7,1621.3,6.61351949]
[1744611812372,4.93313,1621.7,1621.3,11.54767949]
[1744611812581,9.86639,1621.7,1621.3,6.61351949]
[1744611813482,4.93348,1621.6,1621.3,1.67935949]
[1744611813656,9.86707,1621.6,1621.3,1.67935949]
[1744611813855,9.86641,1621.7,1621.4,3.92485494]
[1744611814278,4.93312,1621.7,1621.4,3.92485494]
[1744611814554,0.8231,1621.9,1621.4,8.85882494]
[1744611814751,0.8231,1621.9,1621.6,8.10566494]
[1744611814994,6.9931,1622.0,1621.7,4.93285]
[1744611815196,11.10221,1622.0,1621.7,5.68515]
[1744611815495,4.93252,1621.9,1621.7,0.7523]
[1744611815663,9.86521,1621.9,1621.6,3.17255494]
[1744611817893,4.93252,1621.9,1621.6,3.17255494]
[1744611818762,4.9329,1621.8,1621.6,3.17255494]
[1744611820708,9.86587,1621.8,1621.6,3.17255494]
[1744611820876,9.86587,1621.8,1621.5,0.7523]
[1744611821194,10.63317,1621.8,1621.5,0.7523]
[1744611822319,4.93313,1621.7,1621.4,3.17255494]
[1744611823390,9.8664,1621.7,1621.4,3.17255494]
[1744611823679,4.93313,1621.7,1621.4,3.17255494]
[1744611823874,9.86642,1621.7,1621.4,3.17255494]
[1744611824073,4.93356,1621.6,1621.4,3.17255494]
[1744611824483,4.93314,1621.7,1621.4,3.17255494]
[1744611824707,5.70017,1621.8,1621.4,8.99860785]
[1744611824914,5.70017,1621.8,1621.4,13.93245785]
[1744611825603,10.63312,1621.8,1621.4,8.99860785]
[1744611827113,5.70017,1621.8,1621.4,13.93246785]
[1744611827417,11.86949,1622.0,1621.6,13.03920494]
[1744611827579,6.17,1622.0,1621.7,4.93298]
[1744611827785,6.17,1622.0,1621.8,0.7536]
[1744611828014,11.10224,1622.0,1621.8,0.7536]
[1744611830222,16.03459,1622.0,1621.8,0.7536]
[1744611830620,4.93258,1621.9,1621.6,10.23871543]
[1744611832437,9.86523,1621.9,1621.6,5.30543543]
[1744611832603,4.93258,1621.9,1621.6,5.30543543]
[1744611832801,4.93311,1621.7,1621.4,16.20602785]
[1744611833127,4.93251,1621.9,1621.5,9.86713]
[1744611833332,9.86516,1621.9,1621.5,4.93354]
[1744611833928,4.93251,1621.9,1621.5,9.92876304]
[1744611834236,5.7497,1622.0,1621.7,0.7823]
[1744611834420,10.68207,1622.0,1621.7,0.7823]
[1744611834832,4.9322,1622.0,1621.7,0.7823]
[1744611835042,4.9322,1622.0,1621.7,5.71533]
[1744611836040,4.9322,1622.0,1621.7,5.77698924]
[1744611836335,4.9322,1622.0,1621.7,7.26455729]
[1744611836631,4.9322,1622.0,1621.7,7.20289805]
[1744611836943,4.93249,1621.9,1621.7,2.26986805]
[1744611837510,4.9322,1622.0,1621.7,2.26986805]
[1744611837718,4.93249,1621.9,1621.7,2.26986805]
[1744611837918,4.93106,1622.4,1622.0,4.93194]
[1744611838119,4.93085,1622.5,1622.1,8.94835901]
[1744611838930,9.86171,1622.5,1622.1,8.94835901]
[1744611839214,4.93085,1622.5,1622.1,8.16605901]
[1744611839548,4.93036,1622.6,1622.3,3.17255494]
[1744611839747,5.74786,1622.6,1622.3,3.17255494]
[1744611839935,4.93067,1622.5,1622.3,3.17255494]
[1744611840326,5.74786,1622.6,1622.2,5.71368]
[1744611840527,4.93036,1622.6,1622.3,8.10377494]
[1744611840827,4.93036,1622.6,1622.3,3.17255494]
[1744611841021,4.93067,1622.5,1622.3,3.17255494]
[1744611841428,4.93067,1622.5,1622.2,1.7176043]
[1744611841616,4.93097,1622.4,1622.2,0.7823]
[1744611842137,4.93067,1622.5,1622.2,0.7823]
[1744611842312,4.93067,1622.5,1622.2,5.71387]
[1744611842517,4.93037,1622.6,1622.3,8.10381494]
[1744611843260,4.9309,1622.5,1622.2,0.7823]
[1744611843548,4.93157,1622.2,1621.9,3.17255494]
[1744611844354,4.93157,1622.2,1621.9,8.16668476]
[1744611845053,4.93157,1622.2,1621.9,3.23420476]
[1744611845368,4.93223,1622.0,1621.7,11.08412299]
[1744611845573,9.86459,1622.0,1621.7,11.08412299]
[1744611845921,4.93322,1621.7,1621.4,0.7823]
[1744611846224,5.75002,1621.9,1621.5,8.10624494]
[1744611847351,0.8175,1621.9,1621.5,3.17255494]
[1744611847550,4.93315,1621.7,1621.4,0.7823]
[1744611847743,9.86648,1621.7,1621.4,1.67121249]
[1744611848052,4.9334,1621.6,1621.4,1.67121249]
[1744611848220,4.93315,1621.7,1621.4,1.67121249]
[1744611848624,4.93436,1621.3,1621.0,0.797]
[1744611849446,9.86887,1621.3,1621.0,0.797]
[1744611849644,0.7783,1621.4,1620.9,3.17255494]
[1744611849920,4.93467,1621.2,1620.9,3.17255494]
[1744611851461,4.93467,1621.2,1620.9,8.10803494]
[1744611851627,4.9345,1621.3,1621.0,0.81080349]
[1744611852626,10.6465,1621.4,1621.0,5.74589349]
[1744611852821,5.7123,1621.4,1621.0,5.74589349]
[1744611853257,4.93432,1621.3,1621.0,5.74589349]
[1744611853472,9.9385,1621.6,1621.1,0.8114]
[1744611853650,4.93434,1621.3,1621.1,0.8114]
[1744611855331,4.93434,1621.3,1621.0,0.81080349]
[1744611855740,4.93403,1621.4,1621.0,5.74594349]
[1744611855950,9.86759,1621.5,1621.1,4.9348]
[1744611856148,11.87193,1621.6,1621.2,5.74598]
[1744611856335,11.10343,1621.6,1621.2,11.57851176]
[1744611856548,11.10343,1621.6,1621.2,11.64018875]
[1744611856870,4.93343,1621.6,1621.3,3.17255494]
[1744611857564,4.93264,1621.9,1621.5,3.17255494]
[1744611857873,4.93264,1621.9,1621.4,0.8114]
[1744611857874,0.7685,1621.8,1621.4,0.8114]
[1744611858033,4.93325,1621.7,1621.4,0.8114]
[1744611858428,4.93351,1621.6,1621.4,0.8114]
[1744611858940,9.86712,1621.6,1621.4,0.8114]
[1744611859141,9.86712,1621.6,1621.3,3.17255494]
[1744611859340,4.93351,1621.6,1621.3,4.19941975]
[1744611859933,4.93351,1621.6,1621.3,9.13372975]
[1744611861885,4.93351,1621.6,1621.3,4.19941975]
[1744611862176,4.93351,1621.6,1621.3,9.13365975]
[1744611862401,4.93312,1621.7,1621.3,14.06789975]
[1744611862567,5.70131,1621.8,1621.4,6.40229431]
[1744611862757,5.70131,1621.8,1621.5,5.75917]
[1744611862949,4.93249,1621.9,1621.5,13.86529494]
[1744611863158,5.69112,1622.0,1621.6,4.93328]
[1744611863370,10.62347,1622.0,1621.6,4.93328]
[1744611863574,10.62347,1622.0,1621.6,6.31977949]
[1744611863784,4.93252,1621.9,1621.6,6.31977949]
[1744611866586,5.69112,1622.0,1621.6,6.31977949]
[1744611866786,6.421,1622.1,1621.7,8.93111494]
[1744611866959,6.421,1622.1,1621.8,4.93268]
[1744611867161,6.421,1622.1,1621.8,6.31905949]
[1744611867490,0.7588,1622.7,1622.0,0.8255]
[1744611867693,4.9305,1622.6,1622.2,4.93149]
[1744611867907,5.68885,1622.7,1622.3,10.68772]
[1744611868062,4.92976,1622.8,1622.4,4.93083]
[1744611868621,9.85971,1622.8,1622.4,4.93083]
[1744611868773,4.93013,1622.7,1622.3,13.86025494]
[1744611869108,4.93013,1622.7,1622.3,8.92913494]
[1744611869470,9.86037,1622.7,1622.3,8.92913494]
[1744611869885,4.93036,1622.6,1622.3,8.92913494]
[1744611870186,9.86093,1622.6,1622.3,3.99805494]
[1744611871166,9.86096,1622.6,1622.3,3.99805494]
[1744611871496,4.93036,1622.6,1622.3,3.99805494]
[1744611872295,4.93036,1622.6,1622.3,5.30190912]
[1744611873999,4.93036,1622.6,1622.3,10.23315912]
[1744611874688,4.93005,1622.7,1622.3,15.16426912]
[1744611875479,9.86033,1622.7,1622.3,10.23301912]
[1744611876398,4.93005,1622.7,1622.3,10.23301912]
[1744611876586,4.93005,1622.7,1622.4,1.02330191]
[1744611877200,9.86034,1622.7,1622.3,10.23299912]
[1744611877416,4.93036,1622.6,1622.3,10.23299912]
[1744611879098,4.92976,1622.8,1622.4,4.93077]
[1744611879300,4.92976,1622.8,1622.4,9.86163]
[1744611879467,4.92976,1622.8,1622.4,4.93077]
[1744611879667,4.92976,1622.8,1622.4,6.44715991]
[1744611879881,9.85972,1622.8,1622.4,6.44715991]
[1744611880284,4.93006,1622.7,1622.4,6.44715991]
[1744611880668,9.85981,1622.8,1622.4,6.44715991]
[1744611881083,4.92976,1622.8,1622.5,0.7845]
[1744611881290,9.85969,1622.8,1622.5,0.7845]
[1744611881719,4.93005,1622.7,1622.5,0.7845]
[1744611882382,4.92976,1622.8,1622.5,0.7845]
[1744611882581,4.92976,1622.8,1622.5,5.71511]
[1744611883193,9.85968,1622.8,1622.5,0.7845]
[1744611883392,4.92976,1622.8,1622.5,0.7845]
[1744611883708,4.92976,1622.8,1622.5,10.10997888]
[1744611884507,9.85972,1622.8,1622.5,5.17946888]
[1744611884811,9.85972,1622.8,1622.5,3.95705494]
[1744611885023,4.92976,1622.8,1622.5,3.95705494]
[1744611885818,4.93008,1622.7,1622.5,3.95705494]
[1744611886019,4.92976,1622.8,1622.5,3.95705494]
[1744611886513,9.85967,1622.8,1622.5,3.95705494]
[1744611886714,9.85967,1622.8,1622.5,5.33892043]
[1744611886913,4.92948,1622.9,1622.5,10.26938043]
[1744611887118,5.25080141,1623.0,1622.6,4.9919686]
[1744611887317,0.32154141,1623.0,1622.7,3.17255494]
[1744611887480,0.32154141,1623.0,1622.8,1.10175549]
[1744611887686,4.92886,1623.1,1622.8,1.10175549]
[1744611887895,4.92886,1623.1,1622.8,6.03140549]
[1744611888098,4.92886,1623.1,1622.8,1.10175549]
[1744611889807,4.92928,1623.0,1622.8,1.10175549]
[1744611889988,9.85863,1623.0,1622.8,1.10175549]
[1744611890188,4.92928,1623.0,1622.8,1.10175549]
[1744611890389,9.8579,1623.1,1622.8,1.10175549]
[1744611890826,4.92925,1623.0,1622.8,0.31725549]
[1744611890989,9.85861,1623.0,1622.8,0.31725549]
[1744611891319,4.92925,1623.0,1622.6,10.63052]
[1744611891521,11.8946,1623.2,1622.6,0.77]
[1744611891691,4.92959,1622.9,1622.6,0.77]
[1744611892519,4.92959,1622.9,1622.6,5.70035]
[1744611892816,4.92893,1623.1,1622.7,4.99152922]
[1744611892998,9.85804,1623.1,1622.8,0.49915292]
[1744611894123,4.92917,1623.0,1622.8,0.49915292]
[1744611894299,4.92917,1623.0,1622.6,5.70031]
[1744611894617,4.92944,1622.9,1622.6,5.70031]
[1744611898616,4.92944,1622.9,1622.6,0.77]
[1744611898821,4.92994,1622.8,1622.6,0.77]
[1744611899819,4.92994,1622.8,1622.5,3.17255494]
[1744611899987,4.92994,1622.8,1622.6,0.31725549]
[1744611900801,9.8599,1622.8,1622.6,0.31725549]
[1744611901003,4.93045,1622.6,1622.3,15.28680494]
[1744611901321,4.93005,1622.7,1622.3,20.21782494]
[1744611901522,9.86028,1622.7,1622.3,8.87365494]
[1744611905304,4.93042,1622.6,1622.3,8.87365494]
[1744611905515,4.93042,1622.6,1622.3,10.25417343]
[1744611907130,9.85975,1622.8,1622.4,4.93083]
[1744611907328,4.93045,1622.6,1622.3,10.25432343]
[1744611907625,4.93157,1622.2,1622.0,0.7744]
[1744611908834,9.86331,1622.2,1621.9,3.17255494]
[1744611908998,4.93231,1622.0,1621.8,0.7744]
[1744611909541,4.93231,1622.0,1621.7,3.94695494]
[1744611909741,4.932,1622.1,1621.7,10.26127243]
[1744611911056,5.6994,1622.0,1621.7,1.38134749]
[1744611911211,5.6994,1622.0,1621.6,8.88020494]
[1744611911418,10.63179,1622.0,1621.6,8.88020494]
[1744611911624,0.7672,1622.0,1621.5,10.35895494]
[1744611911836,12.583,1622.2,1621.3,0.30953173]
[1744611911837,4.93339,1621.6,1621.3,0.7744]
[1744611912653,4.93339,1621.6,1621.3,5.70865]
[1744611913001,4.93339,1621.6,1621.3,0.7744]
[1744611913428,5.69999,1621.8,1621.4,3.17255494]
[1744611913630,5.69999,1621.8,1621.4,8.10640494]